bitfinex/quotes_ETHUSD_20251116
["timestamp","ask_amount","ask_price","bid_price","bid_amount"]
[1763292382747,0.03931559,3179.4,3177.9,0.4706]
[1763292383435,0.03931683,3179.3,3177.9,0.4706]
[1763292383628,0.03931312,3179.6,3177.9,0.4706]
[1763292384272,0.53001312,3179.6,3177.9,0.4706]
[1763292384915,0.1699,3179.7,3177.9,0.4706]
[1763292385553,0.03931312,3179.6,3177.9,0.4706]
[1763292386770,0.53001312,3179.6,3177.9,0.4706]
[1763292387234,0.53001312,3179.6,3177.8,0.4706]
[1763292387763,0.53001312,3179.6,3177.9,0.001]
[1763292388126,0.53001312,3179.6,3178.0,0.4706]
[1763292388524,0.53001312,3179.6,3178.1,0.1819]
[1763292388748,0.4907,3179.6,3178.1,0.1819]
[1763292389383,0.2830506,3179.5,3178.1,0.1819]
[1763292389669,0.4907,3179.4,3178.1,0.1819]
[1763292389831,0.4907,3179.4,3178.1,0.6525]
[1763292390637,0.03931683,3179.3,3178.2,0.4706]
[1763292391271,0.53001683,3179.3,3178.2,0.4706]
[1763292392971,0.53001683,3179.3,3177.9,0.001]
[1763292392972,3.84701683,3179.3,3177.9,0.001]
[1763292393158,0.2165,3178.3,3177.9,0.001]
[1763292393563,0.0587,3178.0,3177.9,0.001]
[1763292394075,0.5451,3178.0,3177.9,0.001]
[1763292394691,0.1578,3178.3,3177.9,0.001]
[1763292394845,0.1578,3178.9,3178.2,0.6923]
[1763292395598,0.4529,3179.6,3178.3,0.4933]
[1763292395805,0.28352711,3179.5,3178.3,0.4933]
[1763292396092,0.28352711,3179.4,3178.3,0.4933]
[1763292396295,0.28352711,3179.3,3178.3,0.4933]
[1763292396495,0.73646688,3179.6,3178.3,0.4933]
[1763292396660,0.4529,3179.6,3178.3,0.4933]
[1763292396865,0.4529,3179.5,3178.3,0.4933]
[1763292397388,0.1699,3179.7,3177.9,0.001]
[1763292397389,0.254,3178.4,3177.9,0.001]
[1763292397606,0.0952,3178.0,3177.5,0.001]
[1763292397791,0.1817,3177.6,3177.5,0.001]
[1763292397950,3.77786459,3177.6,3177.0,0.001]
[1763292398164,1.11397736,3177.5,3177.0,0.001]
[1763292398384,0.2832909,3177.4,3174.5,0.09083496]
[1763292398553,3.317,3177.2,3174.8,0.4933]
[1763292398747,3.317,3177.0,3175.0,0.6931]
[1763292398954,0.68860999,3176.9,3175.0,0.6931]
[1763292399153,0.85821909,3176.9,3175.0,0.6931]
[1763292399378,0.4529,3176.8,3175.0,0.6931]
[1763292399573,0.4529,3176.8,3175.1,0.4933]
[1763292400159,0.4529,3176.8,3175.0,0.1998]
[1763292401083,0.4529,3176.8,3175.0,0.6931]
[1763292401470,0.4529,3176.8,3175.1,0.4933]
[1763292404273,0.4529,3177.3,3175.2,0.405504]
[1763292404785,0.4529,3177.3,3175.4,0.405504]
[1763292404997,0.1773,3177.6,3175.5,0.4933]
[1763292405681,0.1773,3177.6,3175.6,0.405504]
[1763292406114,0.1763,3177.9,3175.8,0.405504]
[1763292406409,0.6107,3178.4,3175.8,0.405504]
[1763292406713,0.002,3177.6,3176.0,0.405504]
[1763292407083,0.002,3177.6,3176.1,0.6931]
[1763292407612,0.002,3177.6,3176.2,0.4933]
[1763292408178,0.002,3177.6,3176.3,0.405504]
[1763292408697,0.002,3177.6,3176.4,0.4933]
[1763292412293,0.002,3177.6,3176.5,0.405504]
[1763292412798,0.002,3177.6,3176.6,0.4933]
[1763292412997,0.002,3177.6,3176.6,1.6270408]
[1763292413235,0.002,3177.6,3176.7,0.20325448]
[1763292413445,0.002,3177.6,3176.7,0.4933]
[1763292415599,0.002,3177.6,3176.1,0.1998]
[1763292415805,0.4737,3176.8,3176.1,0.1998]
[1763292416001,0.4737,3176.8,3175.7,0.4933]
[1763292416201,0.0756,3176.7,3175.5,0.001]
[1763292416965,0.0756,3176.7,3175.5,0.4943]
[1763292417129,0.002,3177.6,3175.5,0.4943]
[1763292417130,0.4529,3177.1,3175.5,0.4943]
[1763292417841,0.4529,3177.1,3175.6,0.4933]
[1763292420166,0.4529,3177.4,3175.6,0.4933]
[1763292422681,0.4529,3177.4,3175.7,0.405504]
[1763292423278,0.4529,3177.4,3175.8,0.4933]
[1763292424988,0.002,3177.6,3175.9,0.405504]
[1763292425491,0.002,3177.6,3176.1,0.405504]
[1763292425958,0.04133786,3177.6,3176.2,0.6741]
[1763292426493,0.04133786,3177.6,3176.3,0.4921]
[1763292427291,0.4586,3177.5,3176.3,0.4921]
[1763292428391,0.4586,3177.5,3175.8,0.001]
[1763292428392,0.03934034,3177.4,3175.8,0.4931]
[1763292428554,0.4586,3177.5,3175.8,0.4931]
[1763292428754,0.4586,3177.4,3175.8,0.4931]
[1763292429191,0.002,3177.6,3175.9,0.405504]
[1763292429374,0.4606,3177.6,3175.9,0.405504]
[1763292429567,0.0393391,3177.5,3176.0,0.4921]
[1763292430086,0.4979391,3177.5,3176.1,0.182]
[1763292430572,0.4979391,3177.5,3176.1,0.6741]
[1763292430774,0.4586,3177.5,3176.1,0.6741]
[1763292431095,0.4586,3177.5,3176.2,0.4921]
[1763292431680,0.4979391,3177.5,3176.2,0.4921]
[1763292431880,0.4979391,3177.5,3176.1,0.182]
[1763292432194,0.4586,3177.5,3176.1,0.182]
[1763292433182,0.4586,3177.5,3176.1,0.6741]
[1763292433587,0.03934034,3177.4,3176.1,0.6741]
[1763292434225,0.4586,3177.3,3176.1,0.6741]
[1763292435923,0.03934281,3177.2,3176.1,0.6741]
[1763292436135,0.4586,3177.3,3176.1,0.6741]
[1763292436328,0.4838,3177.2,3176.1,0.6741]
[1763292437599,0.002,3177.6,3176.0,0.05]
[1763292437600,0.0656,3176.2,3176.0,0.05]
[1763292437920,0.002,3177.6,3174.3,6.67658902]
[1763292437921,0.2413,3175.6,3174.3,6.67658902]
[1763292438116,0.5493,3175.5,3173.8,0.1998]
[1763292438926,0.0654,3175.4,3174.5,0.06185772]
[1763292441285,0.1716,3175.6,3174.5,0.06185772]
[1763292441286,0.1716,3175.6,3174.6,0.4806]
[1763292441561,0.1716,3177.0,3175.5,0.4812]
[1763292441562,0.4761,3176.9,3175.5,0.4812]
[1763292441924,0.1716,3177.0,3175.6,0.4806]
[1763292442131,0.6477,3177.0,3175.5,0.4812]
[1763292442330,0.03934653,3176.9,3175.5,0.4812]
[1763292442570,0.03934653,3176.9,3175.3,0.6608]
[1763292442571,0.51544653,3176.9,3175.3,0.6608]
[1763292442727,0.4761,3176.9,3175.4,0.4806]
[1763292442930,0.1716,3177.0,3175.4,0.4806]
[1763292442931,0.1716,3177.0,3175.5,0.405504]
[1763292443152,0.1716,3177.0,3175.4,0.4806]
[1763292443464,0.4761,3177.5,3175.5,0.405504]
[1763292444075,0.03934034,3177.4,3175.6,0.4806]
[1763292444567,0.51544034,3177.4,3175.6,0.4806]
[1763292444936,0.51544034,3177.4,3175.3,0.1802]
[1763292445865,0.28220486,3177.3,3175.3,0.1802]
[1763292446029,0.51544281,3177.2,3175.3,0.1802]
[1763292446225,0.4761,3177.2,3175.4,0.4806]
[1763292446691,0.4761,3177.2,3175.5,0.405504]
[1763292447093,0.4761,3177.2,3175.4,0.4806]
[1763292447094,0.4761,3177.2,3175.6,0.4806]
[1763292447323,0.002,3177.5,3175.7,0.405504]
[1763292447771,0.002,3177.5,3175.9,0.405504]
[1763292447981,0.002,3177.5,3176.0,0.3148]
[1763292448154,0.002,3177.5,3176.1,0.405504]
[1763292448355,0.002,3177.5,3176.3,0.405504]
[1763292448789,0.002,3177.5,3176.4,0.4806]
[1763292449565,0.002,3177.5,3176.5,0.405504]
[1763292449771,0.002,3177.5,3177.4,0.6614]
[1763292449993,0.002,3177.5,3177.4,1.142]
[1763292451360,0.002,3177.5,3177.4,0.6614]
[1763292451697,0.002,3177.5,3177.4,0.1802]
[1763292452512,0.002,3177.5,3177.4,0.6614]
[1763292452708,0.002,3177.5,3177.4,1.142]
[1763292453204,0.002,3177.5,3177.4,0.4812]
[1763292453393,0.002,3177.5,3177.4,0.9618]
[1763292456183,0.002,3177.5,3177.4,0.954]
[1763292457116,0.002,3177.5,3177.4,1.359504]
[1763292457918,0.002,3177.5,3177.4,4.3852448]
[1763292458091,0.002,3177.5,3177.4,2.93176928]
[1763292461510,0.002,3177.9,3177.5,1.328404]
[1763292461722,0.002,3177.9,3177.8,0.855604]
[1763292462230,0.002,3177.9,3177.8,1.328404]
[1763292463087,0.002,3178.2,3177.9,1.9893448]
[1763292463288,0.002,3178.2,3178.1,0.405504]
[1763292463524,0.002,3178.2,3178.1,1.038604]
[1763292463715,0.002,3178.2,3178.1,1.511404]
[1763292465324,0.002,3178.3,3178.1,1.511404]
[1763292465493,0.002,3178.3,3178.2,1.328404]
[1763292467834,0.002,3178.3,3178.2,1.59291848]
[1763292468010,0.002,3178.3,3178.2,2.72665928]
[1763292468207,0.002,3179.7,3178.3,1.5392448]
[1763292468433,0.002,3179.7,3178.3,2.0120448]
[1763292468731,0.002,3179.7,3178.5,0.405504]
[1763292469091,0.002,3179.7,3178.6,0.4728]
[1763292469495,0.002,3179.7,3179.6,0.4501]
[1763292469698,0.002,3179.7,3178.6,0.4728]
[1763292469937,0.002,3179.7,3178.7,0.405504]
[1763292470122,0.002,3179.7,3178.8,0.4728]
[1763292471631,0.268,3178.9,3177.1,0.1802]
[1763292471796,0.1716,3178.9,3177.1,0.1802]
[1763292472000,0.04131188,3179.7,3178.8,0.4501]
[1763292472201,0.002,3179.7,3178.9,2.06682176]
[1763292472434,0.002,3179.7,3177.1,0.1802]
[1763292472435,0.4546,3179.7,3179.0,0.20668218]
[1763292472595,0.0964,3179.0,3177.6,0.4728]
[1763292472794,0.4546,3179.7,3177.7,0.405504]
[1763292473059,0.4526,3179.6,3177.7,0.405504]
[1763292473334,0.4526,3179.6,3177.9,0.405504]
[1763292473539,0.4526,3179.6,3178.0,0.4728]
[1763292473904,0.4526,3179.6,3178.1,0.183]
[1763292474333,0.4526,3179.6,3178.1,0.6558]
[1763292474493,0.4526,3179.6,3178.2,0.405504]
[1763292476197,0.4526,3179.6,3177.4,0.90344402]
[1763292476398,0.03931435,3179.5,3177.5,0.4728]
[1763292476865,0.03931435,3179.5,3177.1,0.1802]
[1763292476866,0.4526,3179.4,3177.1,0.1802]
[1763292477078,0.4526,3179.4,3177.1,0.653]
[1763292477568,0.4526,3179.4,3177.1,0.1802]
[1763292477870,0.4526,3179.4,3176.7,0.4728]
[1763292478079,0.4526,3179.4,3176.1,1.74043903]
[1763292478080,3.59907774,3179.3,3176.3,0.183]
[1763292478270,0.405504,3179.1,3176.1,0.1802]
[1763292478577,0.405504,3178.9,3175.9,0.183]
[1763292478879,3.317,3178.6,3175.9,0.183]
[1763292479039,0.28207774,3178.5,3175.9,0.183]
[1763292479372,0.35990777,3178.4,3175.9,0.183]
[1763292479570,0.64198551,3178.4,3175.9,0.183]
[1763292479770,0.4526,3178.3,3177.5,0.001]
[1763292479974,0.28207774,3178.2,3177.5,0.001]
[1763292480173,0.2719,3177.6,3177.2,0.001]
[1763292480674,0.0045,3177.3,3176.9,0.001]
[1763292480881,0.0928,3177.0,3176.9,0.001]
[1763292481037,0.0928,3177.0,3174.5,2.83513604]
[1763292481038,0.0928,3177.0,3175.1,0.4728]
[1763292481237,0.625,3176.9,3175.1,0.4728]
[1763292481650,0.4526,3176.8,3175.1,0.4728]
[1763292482238,0.4526,3176.8,3174.5,0.06285772]
[1763292482638,0.4526,3176.8,3174.5,0.53565772]
[1763292483773,0.4526,3176.8,3174.6,0.405504]
[1763292484178,0.4526,3176.8,3174.8,0.405504]
[1763292484389,0.4526,3176.8,3175.0,0.405504]
[1763292484893,0.4526,3176.8,3175.2,0.405504]
[1763292485509,0.4526,3176.8,3174.8,0.4964]
[1763292485796,0.4526,3176.8,3174.5,0.06285772]
[1763292487967,0.4526,3176.8,3174.5,0.55925772]
[1763292488779,0.4526,3176.8,3174.5,0.06285772]
[1763292488968,0.1635,3176.0,3174.5,0.06285772]
[1763292489469,0.4987,3175.9,3174.5,0.06285772]
[1763292490205,0.215,3174.6,3174.5,0.06285772]
[1763292490495,0.4987,3175.9,3174.5,0.06285772]
[1763292490681,0.4987,3175.8,3174.5,0.06285772]
[1763292490990,0.215,3174.6,3174.5,0.06285772]
[1763292491692,0.4958,3175.0,3174.5,0.06285772]
[1763292491899,0.0536,3174.6,3174.5,0.06285772]
[1763292492369,0.545,3174.6,3174.5,0.06285772]
[1763292493073,0.545,3174.6,3173.8,0.001]
[1763292493394,0.0049,3174.2,3173.8,0.001]
[1763292493596,0.2286,3173.9,3173.8,0.001]
[1763292493773,0.2286,3173.9,3172.2,0.04]
[1763292493968,0.3375,3172.3,3172.2,0.04]
[1763292494312,0.3935,3172.3,3172.2,0.04]
[1763292494612,0.3935,3172.3,3170.2,0.1913]
[1763292494771,0.3367,3171.1,3170.2,0.1913]
[1763292494968,0.056,3172.3,3169.4,0.16405922]
[1763292494969,0.405504,3172.1,3169.4,0.16405922]
[1763292495315,0.405504,3172.1,3171.0,9.9009]
[1763292495520,0.4626,3172.0,3171.0,9.9009]
[1763292496491,0.4626,3172.0,3171.1,0.1802]
[1763292496690,0.4626,3172.0,3171.1,1.3139408]
[1763292497096,0.4626,3172.0,3171.1,1.1337408]
[1763292497475,0.056,3172.3,3171.1,1.3139408]
[1763292498608,0.1869,3173.0,3171.1,1.3139408]
[1763292498609,0.1869,3173.0,3172.2,0.1802]
[1763292498807,0.4626,3174.0,3172.2,0.1802]
[1763292499107,0.4626,3173.8,3172.3,0.4908]
[1763292499803,0.108,3175.0,3172.4,0.405504]
[1763292500122,0.50197379,3174.7,3172.4,0.405504]
[1763292500281,0.50197379,3174.7,3172.6,0.405504]
[1763292500698,0.50197379,3174.7,3172.4,0.4908]
[1763292500897,0.4626,3174.7,3172.4,0.4908]
[1763292501222,0.4626,3174.7,3172.5,0.405504]
[1763292501395,0.03937503,3174.6,3172.2,0.1802]
[1763292501594,0.50197379,3174.7,3172.3,0.4908]
[1763292501799,0.4626,3174.6,3172.3,0.4908]
[1763292502182,0.108,3175.0,3172.4,0.405504]
[1763292502183,0.5706,3175.0,3172.4,0.405504]
[1763292502578,0.5706,3175.0,3172.2,0.1802]
[1763292502579,0.5706,3175.0,3172.6,0.405504]
[1763292502784,0.108,3175.3,3172.6,0.405504]
[1763292502981,0.108,3175.3,3172.8,0.405504]
[1763292503330,0.108,3175.3,3171.6,0.4908]
[1763292503331,0.1707,3173.5,3171.6,0.4908]
[1763292503828,0.4626,3173.4,3171.2,0.4908]
[1763292504336,0.03939117,3173.3,3171.2,0.4908]
[1763292504494,0.4626,3173.4,3171.3,0.18047408]
[1763292504706,0.4626,3173.3,3171.2,0.4908]
[1763292506591,0.03939241,3173.2,3171.2,0.4908]
[1763292507008,0.4626,3173.1,3171.2,0.4908]
[1763292507925,0.4626,3173.1,3171.3,0.405504]
[1763292508145,0.1707,3173.5,3171.3,0.405504]
[1763292508332,0.4626,3173.4,3171.4,0.4908]
[1763292508707,0.4626,3173.4,3171.5,0.4908]
[1763292508708,0.50198992,3173.4,3171.5,0.4908]
[1763292508908,0.4626,3173.4,3171.5,0.4908]
[1763292509344,0.1707,3173.5,3171.6,0.405504]
[1763292509707,0.5849968,3174.7,3173.4,0.1802]
[1763292509708,0.4626,3174.6,3173.4,0.1802]
[1763292510241,0.1707,3174.7,3173.5,0.4908]
[1763292510443,3.4877,3176.8,3173.5,0.4908]
[1763292510444,0.4626,3175.5,3173.5,0.4908]
[1763292510809,0.03936759,3175.2,3173.5,0.4908]
[1763292511422,0.108,3175.3,3173.6,0.405504]
[1763292511610,0.03936759,3175.2,3173.6,0.405504]
[1763292511811,0.03936759,3175.2,3173.7,0.4908]
[1763292512143,0.108,3175.3,3173.7,0.4908]
[1763292512342,0.03936759,3175.2,3173.7,0.4908]
[1763292512937,0.50196759,3175.2,3173.7,0.4908]
[1763292513139,0.4626,3175.2,3173.7,0.4908]
[1763292513467,0.4626,3175.2,3171.7,1.892]
[1763292513468,0.1707,3173.8,3171.7,0.4908]
[1763292513752,0.4626,3175.2,3170.9,0.1802]
[1763292513753,0.31929242,3175.0,3172.1,0.1802]
[1763292513925,0.03937131,3174.9,3172.1,0.1802]
[1763292514119,0.03937131,3174.9,3172.2,0.4908]
[1763292514321,0.4626,3174.8,3172.2,0.4908]
[1763292514552,0.31929614,3174.7,3172.2,0.4908]
[1763292515049,0.4969,3174.6,3172.2,0.4908]
[1763292515363,0.28032433,3174.5,3172.2,0.4908]
[1763292515563,0.45102433,3174.5,3172.2,0.4908]
[1763292515763,3.85327752,3174.4,3172.2,0.4908]
[1763292515942,4.02775451,3174.3,3172.1,0.1802]
[1763292516138,0.31970433,3174.2,3172.2,0.4595]
[1763292516345,0.28032433,3174.1,3172.2,0.4595]
[1763292516680,0.28032433,3174.1,3171.0,9.9019]
[1763292516681,0.1788,3172.3,3171.0,9.9019]
[1763292517042,0.4969,3172.2,3171.0,9.9019]
[1763292518587,0.1788,3172.3,3171.1,1.1337408]
[1763292518798,0.1788,3172.3,3171.1,1.5932408]
[1763292519186,0.1788,3172.3,3171.1,1.1337408]
[1763292519369,0.6757,3172.3,3171.1,1.1337408]
[1763292519911,0.88461385,3172.2,3171.0,9.9019]
[1763292520068,0.77661385,3172.1,3171.0,9.9019]
[1763292520269,0.77661385,3172.0,3171.0,9.9019]
[1763292520602,0.27971385,3171.9,3171.0,9.9019]
[1763292520916,0.77661385,3171.9,3171.0,9.9019]
[1763292521073,0.108,3172.2,3171.0,9.9019]
[1763292521402,0.4969,3172.1,3171.0,9.9019]
[1763292523503,0.108,3172.2,3171.1,1.5932408]
[1763292524202,0.1788,3172.6,3171.2,0.4595]
[1763292524387,0.6757,3172.6,3171.2,0.4595]
[1763292524567,0.0394011,3172.5,3171.2,0.4595]
[1763292525311,0.5363011,3172.5,3171.2,0.4595]
[1763292525529,0.4969,3172.5,3171.2,0.4595]
[1763292525808,0.1788,3172.6,3171.2,0.4595]
[1763292526879,0.1788,3172.6,3171.3,0.1826]
[1763292527081,0.6757,3173.5,3172.5,0.1826]
[1763292527387,0.1788,3173.5,3172.5,0.1826]
[1763292527972,0.1788,3174.0,3172.5,0.6421]
[1763292528402,0.1788,3174.0,3172.6,0.4595]
[1763292530424,0.45124027,3174.5,3172.6,0.4595]
[1763292530628,0.1707,3174.5,3172.6,0.4595]
[1763292532025,0.03937752,3174.4,3172.6,0.4595]
[1763292533125,0.03937752,3174.4,3172.7,0.405504]
[1763292533337,0.03937752,3174.4,3172.8,0.4595]
[1763292534556,0.1707,3174.5,3172.8,0.4595]
[1763292534996,0.002,3174.7,3172.8,0.4595]
[1763292536407,0.04137379,3174.7,3172.8,0.4595]
[1763292536970,0.04137379,3174.7,3172.9,0.405504]
[1763292537289,0.03937503,3174.6,3173.0,0.4595]
[1763292537703,0.03937503,3174.6,3173.1,1.3163408]
[1763292537930,0.03937503,3174.6,3173.2,0.17758408]
[1763292538101,0.03937503,3174.6,3173.2,0.63708408]
[1763292538314,0.4969,3174.5,3173.2,0.63708408]
[1763292538514,0.03937752,3174.4,3173.2,0.4595]
[1763292539263,0.4969,3174.3,3173.1,0.1826]
[1763292539426,0.4969,3174.3,3172.8,0.4595]
[1763292539427,0.03938,3174.2,3172.8,0.4595]
[1763292540246,0.4969,3174.3,3172.8,0.4595]
[1763292540741,0.03938,3174.2,3172.8,0.4595]
[1763292541324,0.4969,3174.1,3172.8,0.4595]
[1763292541525,0.03938248,3174.0,3172.8,0.4595]
[1763292541749,0.03938248,3174.0,3172.5,0.1826]
[1763292541949,0.6757,3173.9,3172.5,0.1826]
[1763292542254,0.03938496,3173.8,3172.5,0.1826]
[1763292542426,0.53628496,3173.8,3172.5,0.1826]
[1763292542822,0.4969,3173.8,3172.6,0.4595]
[1763292543049,0.1788,3173.9,3172.6,0.4595]
[1763292543452,0.03938124,3174.1,3172.6,0.4595]
[1763292543621,0.03937627,3174.5,3172.6,0.4595]
[1763292544553,0.50797627,3174.5,3172.7,0.405504]
[1763292544761,0.03937752,3174.4,3172.8,0.4956]
[1763292544936,0.04137379,3174.7,3172.8,0.4956]
[1763292545551,0.04137379,3174.7,3172.9,0.405504]
[1763292545734,0.4686,3174.6,3172.8,0.4956]
[1763292546263,0.03937627,3174.5,3172.8,0.4956]
[1763292546760,0.002,3174.7,3172.8,0.4956]
[1763292546761,0.4686,3174.4,3172.8,0.4956]
[1763292547427,0.03937876,3174.3,3172.8,0.4956]
[1763292547852,0.4686,3174.3,3172.8,0.4956]
[1763292548049,0.03938,3174.2,3172.8,0.4956]
[1763292548265,0.4686,3174.3,3172.8,0.4956]
[1763292548643,0.03938,3174.2,3172.8,0.4956]
[1763292549730,0.002,3174.7,3172.8,0.4956]
[1763292549933,0.50997379,3174.7,3172.8,0.4956]
[1763292550554,0.002,3174.5,3172.8,0.4956]
[1763292552275,0.4686,3174.4,3172.8,0.4956]
[1763292553169,0.50797752,3174.4,3172.8,0.4956]
[1763292553370,0.4686,3174.4,3172.8,0.4956]
[1763292554240,0.254,3172.9,3171.4,2.77227832]
[1763292554440,0.0035,3172.6,3171.0,9.9019]
[1763292554652,0.0035,3172.6,3171.1,0.4715]
[1763292554872,0.1734,3172.9,3171.1,0.4715]
[1763292555084,0.4811,3172.8,3171.1,0.4715]
[1763292555434,0.4811,3172.8,3171.0,9.9019]
[1763292555845,0.4811,3172.8,3171.1,1.1337408]
[1763292556047,0.4811,3172.8,3171.0,9.9019]
[1763292556243,0.2129,3171.1,3171.0,9.9019]
[1763292556470,0.1447,3171.3,3171.0,9.9019]
[1763292556680,0.1447,3171.5,3171.0,9.9019]
[1763292557147,0.0682,3171.1,3171.0,9.9019]
[1763292557946,0.477,3171.4,3171.0,9.9019]
[1763292558197,0.1447,3171.5,3171.0,9.9019]
[1763292559803,0.1447,3172.6,3171.4,0.4552]
[1763292560008,0.4811,3172.4,3171.1,1.7865408]
[1763292560499,0.4811,3172.4,3171.2,0.4715]
[1763292560805,0.1447,3172.6,3171.2,0.4715]
[1763292560999,0.1447,3172.6,3171.3,0.17865408]
[1763292561206,0.03938372,3173.9,3172.5,0.6365]
[1763292561504,0.1591,3173.5,3171.4,0.4715]
[1763292561717,0.03938992,3173.4,3171.4,0.4715]
[1763292562030,0.4811,3173.4,3171.4,0.4715]
[1763292562469,0.1591,3173.5,3171.5,0.405504]
[1763292562875,0.52048992,3173.4,3171.3,0.17865408]
[1763292563108,0.52048992,3173.4,3171.4,0.4715]
[1763292563304,0.4811,3173.4,3171.4,0.4715]
[1763292564006,0.4811,3173.4,3171.1,1.3150408]
[1763292564209,0.03939117,3173.3,3171.3,0.4715]
[1763292564695,0.4811,3173.2,3171.3,0.4715]
[1763292565607,0.4811,3173.2,3171.4,0.405504]
[1763292565831,0.1591,3173.5,3171.4,0.405504]
[1763292566116,0.4811,3173.4,3171.6,0.405504]
[1763292566623,0.4811,3173.4,3171.7,0.4715]
[1763292566911,0.03939117,3173.3,3171.7,0.4715]
[1763292567309,0.4811,3173.2,3171.7,0.4715]
[1763292567507,0.03939365,3173.1,3171.7,0.4715]
[1763292567884,0.52049365,3173.1,3171.7,0.4715]
[1763292568286,0.4811,3173.1,3171.7,0.4715]
[1763292568506,0.6402,3173.5,3171.7,0.4715]
[1763292568704,0.002,3173.3,3171.7,0.4715]
[1763292568913,0.04139117,3173.3,3171.7,0.4715]
[1763292569219,0.4811,3173.2,3171.7,0.4715]
[1763292569575,0.03939365,3173.1,3171.7,0.4715]
[1763292569844,0.002,3173.7,3171.7,0.4715]
[1763292569845,0.002,3175.4,3172.1,1.95277182]
[1763292570131,2.7306275,3176.6,3172.0,2.0733]
[1763292570132,0.1734,3178.0,3175.4,0.405504]
[1763292570432,0.1734,3178.0,3176.2,0.1367]
[1763292570433,0.6545,3178.0,3176.2,0.1367]
[1763292570590,0.6545,3178.0,3175.2,0.405504]
[1763292570591,1.12733847,3177.9,3175.2,0.405504]
[1763292570787,0.28118282,3177.8,3175.6,0.84155438]
[1763292571005,0.03842004,3177.7,3175.4,0.84155438]
[1763292571325,3.317,3177.6,3175.7,13.74081987]
[1763292571511,0.03842004,3177.5,3175.7,13.74081987]
[1763292571719,3.83652004,3177.5,3175.7,11.45984547]
[1763292571919,0.51952004,3177.5,3175.7,12.30139985]
[1763292572121,0.4811,3177.4,3175.6,0.84155438]
[1763292572643,0.4811,3177.4,3175.8,0.84155438]
[1763292572842,0.4811,3177.4,3176.1,0.84155438]
[1763292573217,0.4811,3177.4,3176.0,0.84155438]
[1763292573421,0.4811,3177.4,3176.2,1.1337408]
[1763292573603,0.4811,3177.4,3176.3,4.12887209]
[1763292574209,0.4811,3177.4,3176.1,0.84155438]
[1763292574507,0.476,3177.8,3176.3,2.61321049]
[1763292574707,0.476,3177.8,3176.4,1.97529518]
[1763292574943,0.03842004,3177.7,3176.5,1.33133882]
[1763292575129,0.03842004,3177.7,3176.4,0.84155438]
[1763292575130,3.40329038,3177.7,3176.4,0.84155438]
[1763292575329,0.476,3177.6,3176.2,0.83680907]
[1763292575533,0.03842004,3177.5,3176.2,0.83680907]
[1763292575909,0.476,3177.6,3176.3,0.6703]
[1763292576110,0.476,3177.6,3176.3,0.1813]
[1763292577013,0.476,3177.6,3176.3,0.6703]
[1763292577352,0.03842004,3177.5,3176.3,0.1813]
[1763292577550,0.476,3177.6,3176.3,0.1813]
[1763292577850,0.51442004,3177.5,3176.3,0.1813]
[1763292578574,0.476,3177.5,3176.4,0.489]
[1763292578755,0.1734,3178.0,3176.4,0.489]
[1763292578945,0.476,3177.9,3176.4,0.489]
[1763292579128,0.1734,3178.0,3176.4,0.489]
[1763292579749,0.1734,3178.0,3176.4,0.75308499]
[1763292579949,0.1734,3178.0,3176.4,1.58989406]
[1763292580145,0.1734,3178.0,3176.5,0.489]
[1763292580345,0.1947,3178.1,3176.5,1.32580907]
[1763292580669,0.1801,3178.4,3176.7,0.83680907]
[1763292580837,0.1801,3178.4,3176.8,0.489]
[1763292581249,0.6561,3178.4,3176.8,0.489]
[1763292581632,0.51442004,3178.3,3176.8,0.489]
[1763292583034,0.51442004,3178.3,3176.4,0.26408499]
[1763292583239,0.476,3178.3,3176.5,0.489]
[1763292583739,0.03842004,3178.2,3176.7,0.5]
[1763292583940,0.03842004,3178.2,3176.6,0.5]
[1763292584159,0.476,3178.1,3176.6,0.5]
[1763292584639,0.03842004,3178.0,3176.3,0.1813]
[1763292584838,0.03842004,3178.0,3176.5,0.5]
[1763292585039,0.6561,3177.9,3176.5,0.5]
[1763292585568,0.476,3177.8,3176.5,0.5]
[1763292585746,0.51442004,3177.8,3176.3,1.1703]
[1763292586655,0.51442004,3177.8,3176.3,0.1813]
[1763292589742,0.476,3177.8,3176.3,0.6703]
[1763292591384,0.476,3177.8,3176.3,0.1813]
[1763292591385,0.03842004,3177.7,3176.3,0.1813]
[1763292591569,0.03842004,3177.7,3176.1,0.83680907]
[1763292591772,0.476,3177.6,3176.1,0.1753]
[1763292592644,0.03842004,3177.5,3176.1,0.1753]
[1763292593046,0.476,3177.4,3176.1,0.1753]
[1763292593246,0.476,3177.4,3176.1,1.01210907]
[1763292593483,0.476,3177.4,3176.1,1.38780131]
[1763292593687,0.476,3177.4,3176.1,1.01210907]
[1763292593889,0.03842004,3177.3,3176.0,0.83680907]
[1763292594049,0.03842004,3177.3,3175.8,0.83680907]
[1763292594395,3.793,3177.2,3175.7,0.83680907]
[1763292594688,0.42156204,3177.1,3175.6,0.83680907]
[1763292594861,0.89756204,3177.1,3175.6,0.83680907]
[1763292595062,0.89756204,3177.1,3175.5,0.83680907]
[1763292595267,0.476,3177.0,3175.7,0.83680907]
[1763292595453,0.03842004,3176.9,3175.7,0.83680907]
[1763292595649,0.21852004,3176.9,3175.7,0.83680907]
[1763292595890,0.476,3176.8,3175.7,0.83680907]
[1763292596292,0.476,3176.8,3175.5,1.12207251]
[1763292596293,0.476,3176.8,3175.8,0.83680907]
[1763292597058,0.03842004,3176.7,3175.8,0.83680907]